[Event "ESP-chT 2nd Division 2019"]
[Site "Linares"]
[Date "2019.08.22"]
[Round "6.28"]
[White "Campos Cayuelas, Adria"]
[Black "Castilla Leon Salas, Carlos"]
[Result "1-0"]
[ECO "B23"]
[WhiteElo "2157"]
[BlackElo "2252"]
[Annotator "NA"]
[PlyCount "67"]
[EventDate "2019.08.19"]
[EventType "team-tourn"]
[EventCountry "ESP"]
[SourceTitle "playchess.com"]
[Source "ChessBase"]
[SourceQuality "1"]
[TimeControl "5400+30"]

1. e4 {[%emt 0:00:00]} c5 {[%emt 0:00:45]} 2. Nc3 {[%emt 0:00:00]} g6 {[%emt 0:00:37]} 3. Bc4 {[%emt 0:00:00]} Nc6 {[%emt 0:01:04]} 4. a3 {[%emt 0:00:48]} Bg7 {[%emt 0:00:43]} 5. d3 {[%emt 0:00:13]} d6 {[%emt 0:02:29]} 6. Ba2 {[%emt 0:01:01]} Rb8 {[%emt 0:01:52]} 7. Nge2 {[%emt 0:10:53]} b5 {[%emt 0:05:28]} 8. O-O {[%emt 0:05:43]} e6 {[%emt 0:02:11]} 9. Bd2 {[%emt 0:06:08]} Nge7 {[%emt 0:02:04]} 10. f4 {[%emt 0:05:56]} O-O {[%emt 0:09:04]} 11. f5 {[%emt 0:02:45]} exf5 {[%emt 0:10:53]} 12. Bg5 {[%emt 0:06:36]} h6 {[%emt 0:03:22]} 13. exf5 {[%emt 0:02:15]} hxg5 {[%emt 0:07:11]} 14. f6 {[%emt 0:00:38]} Bh8 {[%emt 0:00:48]} 15. fxe7 {[%emt 0:00:54]} Qxe7 {[%emt 0:01:27]} 16. Ng3 {[%emt 0:01:10]} Be6 {[%emt 0:06:23]} 17. Nd5 {[%emt 0:09:00]} Qd8 {[%emt 0:00:40]} 18. c3 {[%emt 0:05:08]} Be5 {[%emt 0:04:28]} 19. Qd2 {[%emt 0:02:07]} f5 {[%emt 0:05:16]} 20. b4 {[%emt 0:02:28]} Kg7 {[%emt 0:01:52]} 21. Ne2 {[%emt 0:01:18]} Rh8 {[%emt 0:03:48]} 22. g3 {[%emt 0:00:44]} Qg8 {[%emt 0:00:23]} 23. d4 {[%emt 0:02:44]} cxd4 {[%emt 0:07:05]} 24. cxd4 {[%emt 0:00:31]} Bxg3 {[%emt 0:02:45]} 25. Nxg3 {[%emt 0:00:38]} f4 {[%emt 0:02:17]} 26. Nxf4 {[%emt 0:02:02]} Bxa2 {[%emt 0:00:24]} 27. Nfh5+ {[%emt 0:03:24]} gxh5 {[%emt 0:10:19]} 28. Rxa2 {[%emt 0:00:41]} Qd5 {[%emt 0:01:03]} 29. Nf5+ {[%emt 0:01:55]} Kh7 {[%emt 0:00:57]} 30. Qd3 {[%emt 0:01:40]} Qe6 {[%emt 0:01:27]} 31. Ne7+ {[%emt 0:04:47]} Kh6 {[%emt 0:00:06]} 32. Re2 {[%emt 0:00:30]} Qg4+ {[%emt 0:01:05]} 33. Kh1 {[%emt 0:00:16]} Nxe7 {[%emt 0:00:51]} 34. Rxe7 {[%emt 0:00:08]} 1-0

[Event "ESP-chT 2nd Division 2019"]
[Site "Linares"]
[Date "2019.08.22"]
[Round "6.29"]
[White "Leon Acosta, Miguel"]
[Black "Fernandez Aguilar, Francisco"]
[Result "1/2-1/2"]
[ECO "A01"]
[WhiteElo "2155"]
[BlackElo "2064"]
[Annotator "NA"]
[PlyCount "90"]
[EventDate "2019.08.19"]
[EventType "team-tourn"]
[EventCountry "ESP"]
[SourceTitle "playchess.com"]
[Source "ChessBase"]
[SourceQuality "1"]
[TimeControl "5400+30"]

1. b3 {[%emt 0:00:00]} d5 {[%emt 0:00:11]} 2. Bb2 {[%emt 0:00:00]} Bg4 {[%emt 0:00:51]} 3. h3 {[%emt 0:00:20]} Bh5 {[%emt 0:00:10]} 4. d3 {[%emt 0:00:47]} Nd7 {[%emt 0:00:59]} 5. Nd2 {[%emt 0:11:19]} e6 {[%emt 0:01:42]} 6. Ngf3 {[%emt 0:00:23]} Ngf6 {[%emt 0:00:12]} 7. g3 {[%emt 0:02:22]} Be7 {[%emt 0:00:43]} 8. Bg2 {[%emt 0:01:23]} O-O {[%emt 0:00:26]} 9. e3 {[%emt 0:00:38]} c6 {[%emt 0:02:07]} 10. Qe2 {[%emt 0:00:24]} a5 {[%emt 0:05:02]} 11. a3 {[%emt 0:03:58]} Ne8 {[%emt 0:12:36]} 12. e4 {[%emt 0:02:30]} dxe4 {[%emt 0:08:43]} 13. dxe4 {[%emt 0:00:07]} Qc7 {[%emt 0:09:04]} 14. O-O {[%emt 0:08:30]} e5 {[%emt 0:06:22]} 15. g4 {[%emt 0:02:41]} Bg6 {[%emt 0:02:27]} 16. Nc4 {[%emt 0:00:27]} f6 {[%emt 0:00:16]} 17. Nh4 {[%emt 0:02:13]} Nc5 {[%emt 0:06:03]} 18. Ne3 {[%emt 0:06:56]} Nd6 {[%emt 0:08:08]} 19. Nhf5 {[%emt 0:04:44]} Ne6 {[%emt 0:01:11]} 20. Rfd1 {[%emt 0:04:58]} Nf4 {[%emt 0:01:25]} 21. Qf3 {[%emt 0:03:02]} Nxf5 {[%emt 0:01:24]} 22. exf5 {[%emt 0:01:56]} Bf7 {[%emt 0:00:23]} 23. Bf1 {[%emt 0:00:37]} Rfd8 {[%emt 0:02:57]} 24. c4 {[%emt 0:07:16]} Qb6 {[%emt 0:04:26]} 25. Ng2 {[%emt 0:00:38]} Nxg2 {[%emt 0:00:20]} 26. Kxg2 {[%emt 0:00:02]} Bc5 {[%emt 0:00:49]} 27. Be2 {[%emt 0:09:04]} Be8 {[%emt 0:06:34]} 28. Rxd8 {[%emt 0:01:39]} Rxd8 {[%emt 0:00:06]} 29. Rd1 {[%emt 0:00:05]} Bd4 {[%emt 0:02:13]} 30. Bxd4 {[%emt 0:06:28]} exd4 {[%emt 0:00:35]} 31. Qd3 {[%emt 0:00:12]} c5 {[%emt 0:00:39]} 32. Bf3 {[%emt 0:00:57]} Bc6 {[%emt 0:01:28]} 33. a4 {[%emt 0:03:27]} Re8 {[%emt 0:03:57]} 34. Kf1 {[%emt 0:01:24]} Qc7 {[%emt 0:04:12]} 35. Re1 {[%emt 0:02:33]} Rxe1+ {[%emt 0:01:38]} 36. Kxe1 {[%emt 0:00:01]} Bxf3 {[%emt 0:03:44]} 37. Qxf3 {[%emt 0:00:03]} Qc6 {[%emt 0:00:03]} 38. Qe2 {[%emt 0:09:59]} Kf7 {[%emt 0:00:41]} 39. Kd2 {[%emt 0:00:10]} h6 {[%emt 0:01:13]} 40. h4 {[%emt 0:01:16]} Kg8 {[%emt 0:01:24]} 41. Qe7 {[%emt 0:01:27]} b6 {[%emt 0:01:17]} 42. h5 {[%emt 0:01:11]} Kh8 {[%emt 0:01:24]} 43. Qe6 {[%emt 0:00:49]} Qxe6 {[%emt 0:00:50]} 44. fxe6 {[%emt 0:00:09]} Kg8 {[%emt 0:00:26]} 45. f4 {[%emt 0:00:34]} Kf8 {[%emt 0:00:17]} 1/2-1/2

[Event "ESP-chT 2nd Division 2019"]
[Site "Linares"]
[Date "2019.08.22"]
[Round "6.30"]
[White "Lopez Atay, Diana Ruth"]
[Black "Ordonez Torres, Maria Del Carmen"]
[Result "0-1"]
[ECO "C60"]
[WhiteElo "1920"]
[BlackElo "2027"]
[Annotator "NA"]
[PlyCount "60"]
[EventDate "2019.08.19"]
[EventType "team-tourn"]
[EventCountry "ESP"]
[SourceTitle "playchess.com"]
[Source "ChessBase"]
[SourceQuality "1"]
[TimeControl "5400+30"]

1. e4 {[%emt 0:00:00]} e5 {[%emt 0:00:00]} 2. Nf3 {[%emt 0:00:00]} Nc6 {[%emt 0:00:03]} 3. Bb5 {[%emt 0:00:00]} g6 4. O-O {[%emt 0:00:54]} Bg7 {[%emt 0:00:46]} 5. d3 {[%emt 0:00:45]} Nge7 {[%emt 0:00:34]} 6. Nc3 {[%emt 0:00:32]} h6 {[%emt 0:01:27]} 7. a3 {[%emt 0:01:45]} O-O {[%emt 0:00:47]} 8. Bc4 {[%emt 0:01:50]} d6 {[%emt 0:00:31]} 9. Be3 {[%emt 0:01:31]} Kh7 {[%emt 0:05:21]} 10. h3 {[%emt 0:10:27]} f5 {[%emt 0:01:13]} 11. Qe2 {[%emt 0:00:57]} f4 {[%emt 0:01:36]} 12. Bd2 {[%emt 0:00:29]} g5 {[%emt 0:02:03]} 13. Nh2 {[%emt 0:00:30]} Nd4 {[%emt 0:01:21]} 14. Qd1 {[%emt 0:01:58]} f3 {[%emt 0:05:58]} 15. gxf3 {[%emt 0:01:47]} Bxh3 {[%emt 0:00:59]} 16. Re1 {[%emt 0:00:44]} Qd7 {[%emt 0:02:57]} 17. Nd5 {[%emt 0:01:58]} Nxf3+ {[%emt 0:01:52]} 18. Kh1 {[%emt 0:00:49]} Nxe1 {[%emt 0:06:58]} 19. Qxe1 {[%emt 0:00:34]} Ng6 {[%emt 0:02:04]} 20. Qe2 {[%emt 0:01:19]} c6 {[%emt 0:02:56]} 21. Nc3 {[%emt 0:02:30]} Nf4 {[%emt 0:02:13]} 22. Bxf4 {[%emt 0:00:22]} Rxf4 {[%emt 0:00:24]} 23. Rg1 {[%emt 0:01:12]} Raf8 {[%emt 0:03:22]} 24. Nd1 {[%emt 0:00:21]} d5 {[%emt 0:18:24]} 25. exd5 {[%emt 0:00:25]} cxd5 {[%emt 0:00:31]} 26. Bb3 {[%emt 0:00:24]} Rh4 {[%emt 0:01:15]} 27. Ne3 {[%emt 0:03:54]} e4 {[%emt 0:05:09]} 28. Bxd5 {[%emt 0:02:36]} Be5 {[%emt 0:08:23]} 29. Bxe4+ {[%emt 0:00:52]} Kh8 {[%emt 0:00:25]} 30. Nf3 {[%emt 0:16:45]} Bg2+ {[%emt 0:00:51]} 0-1

[Event "ESP-chT 2nd Division 2019"]
[Site "Linares"]
[Date "2019.08.22"]
[Round "6.31"]
[White "Adla, Diego"]
[Black "Santamaria Fernandez, Guillermo"]
[Result "1-0"]
[ECO "A10"]
[WhiteElo "2424"]
[BlackElo "2177"]
[Annotator "NA"]
[PlyCount "101"]
[EventDate "2019.08.19"]
[EventType "team-tourn"]
[EventCountry "ESP"]
[SourceTitle "playchess.com"]
[Source "ChessBase"]
[SourceQuality "1"]
[TimeControl "5400+30"]

1. c4 {[%emt 0:00:00]} g6 {[%emt 0:00:00]} 2. e4 {[%emt 0:00:00]} e5 {[%emt 0:00:00]} 3. Nf3 {[%emt 0:00:00]} Bg7 {[%emt 0:00:13]} 4. d4 {[%emt 0:00:00]} exd4 {[%emt 0:00:28]} 5. Nxd4 {[%emt 0:00:03]} Nc6 {[%emt 0:00:27]} 6. Be3 {[%emt 0:00:06]} Qf6 {[%emt 0:00:38]} 7. Nxc6 {[%emt 0:12:06]} dxc6 {[%emt 0:00:47]} 8. Nc3 {[%emt 0:04:39]} Qe7 {[%emt 0:00:26]} 9. Qc2 {[%emt 0:08:42]} Nf6 {[%emt 0:02:08]} 10. Be2 {[%emt 0:00:22]} Ng4 {[%emt 0:07:53]} 11. Bxg4 {[%emt 0:01:19]} Bxg4 {[%emt 0:00:08]} 12. Rc1 {[%emt 0:06:25]} O-O {[%emt 0:03:01]} 13. O-O {[%emt 0:00:12]} Be6 {[%emt 0:07:02]} 14. Ne2 {[%emt 0:03:42]} Rad8 {[%emt 0:11:18]} 15. Rcd1 {[%emt 0:08:56]} Rxd1 {[%emt 0:24:52]} 16. Rxd1 {[%emt 0:00:07]} Rd8 {[%emt 0:00:44]} 17. b3 {[%emt 0:15:31]} f5 {[%emt 0:04:05]} 18. Rxd8+ {[%emt 0:18:50]} Qxd8 {[%emt 0:00:07]} 19. Nf4 {[%emt 0:00:11]} Bc8 {[%emt 0:01:16]} 20. f3 {[%emt 0:03:18]} b6 {[%emt 0:06:58]} 21. c5 {[%emt 0:05:03]} b5 {[%emt 0:05:04]} 22. h3 {[%emt 0:00:20]} Be5 {[%emt 0:01:26]} 23. Nd3 {[%emt 0:01:59]} Bf6 {[%emt 0:02:18]} 24. Nb4 {[%emt 0:03:50]} Qe8 {[%emt 0:02:20]} 25. Qd3 {[%emt 0:00:22]} a5 {[%emt 0:02:20]} 26. Nc2 {[%emt 0:00:15]} Qe7 {[%emt 0:05:29]} 27. Bd4 {[%emt 0:02:59]} fxe4 {[%emt 0:01:23]} 28. fxe4 {[%emt 0:00:06]} Qd8 {[%emt 0:04:35]} 29. Qc3 {[%emt 0:00:32]} Bxd4+ {[%emt 0:01:50]} 30. Qxd4 {[%emt 0:00:12]} Qg5 {[%emt 0:00:06]} 31. Qe3 {[%emt 0:02:21]} Qe5 {[%emt 0:00:47]} 32. a3 {[%emt 0:00:53]} Be6 {[%emt 0:00:47]} 33. b4 {[%emt 0:00:10]} a4 {[%emt 0:01:00]} 34. Qd3 {[%emt 0:00:59]} Qg5 {[%emt 0:01:17]} 35. Ne1 {[%emt 0:01:34]} Bc4 {[%emt 0:01:35]} 36. Qd4 {[%emt 0:00:11]} Qf4 {[%emt 0:01:26]} 37. Nf3 {[%emt 0:00:23]} Qc1+ {[%emt 0:00:48]} 38. Kh2 {[%emt 0:00:07]} Qf4+ {[%emt 0:00:12]} 39. Kg1 {[%emt 0:00:17]} Qc1+ {[%emt 0:00:01]} 40. Kf2 {[%emt 0:00:10]} Qf4 {[%emt 0:01:38]} 41. Qe5 {[%emt 0:00:29]} Qf7 {[%emt 0:00:26]} 42. Kg3 {[%emt 0:00:09]} h6 {[%emt 0:00:11]} 43. Nd4 {[%emt 0:00:31]} Qd7 {[%emt 0:00:39]} 44. Qf6 {[%emt 0:00:19]} Bf7 {[%emt 0:00:19]} 45. Kf4 {[%emt 0:01:14]} h5 {[%emt 0:01:22]} 46. Ke3 {[%emt 0:00:17]} Kf8 {[%emt 0:00:37]} 47. Nxc6 {[%emt 0:00:43]} Qd1 {[%emt 0:00:22]} 48. Qd8+ {[%emt 0:00:28]} Qxd8 {[%emt 0:00:03]} 49. Nxd8 {[%emt 0:00:05]} Bc4 {[%emt 0:00:16]} 50. h4 {[%emt 0:00:24]} Bf1 {[%emt 0:01:06]} 51. Ne6+ {[%emt 0:00:24]} 1-0

[Event "ESP-chT 2nd Division 2019"]
[Site "Linares"]
[Date "2019.08.22"]
[Round "6.32"]
[White "Moreno Royano, Victor"]
[Black "Glavina, Pablo"]
[Result "0-1"]
[ECO "A12"]
[WhiteElo "2151"]
[BlackElo "2407"]
[Annotator "NA"]
[PlyCount "160"]
[EventDate "2019.08.19"]
[EventType "team-tourn"]
[EventCountry "ESP"]
[SourceTitle "playchess.com"]
[Source "ChessBase"]
[SourceQuality "1"]
[TimeControl "5400+30"]

1. Nf3 {[%emt 0:00:00]} d5 {[%emt 0:03:44]} 2. b3 {[%emt 0:00:00]} Nf6 {[%emt 0:00:41]} 3. Bb2 {[%emt 0:00:01]} g6 {[%emt 0:00:05]} 4. c4 {[%emt 0:00:30]} c6 {[%emt 0:00:07]} 5. e3 {[%emt 0:00:57]} Bg7 {[%emt 0:00:06]} 6. Be2 {[%emt 0:00:51]} a5 {[%emt 0:00:18]} 7. Nc3 {[%emt 0:01:09]} Ne4 {[%emt 0:00:07]} 8. Qc2 {[%emt 0:01:16]} Nxc3 {[%emt 0:01:18]} 9. Bxc3 {[%emt 0:01:08]} O-O {[%emt 0:00:32]} 10. O-O {[%emt 0:18:38]} Bf5 {[%emt 0:00:18]} 11. d3 {[%emt 0:00:21]} Nd7 {[%emt 0:01:26]} 12. Nd4 {[%emt 0:04:38]} Bxd4 {[%emt 0:01:07]} 13. Bxd4 {[%emt 0:00:53]} e5 {[%emt 0:00:05]} 14. Bb2 {[%emt 0:02:06]} Re8 {[%emt 0:00:06]} 15. Rac1 {[%emt 0:07:25]} Rc8 {[%emt 0:01:05]} 16. cxd5 {[%emt 0:16:32]} cxd5 {[%emt 0:00:07]} 17. Qxc8 {[%emt 0:01:54]} Qxc8 {[%emt 0:00:03]} 18. Rxc8 {[%emt 0:00:08]} Rxc8 {[%emt 0:00:04]} 19. Rc1 {[%emt 0:00:31]} Rxc1+ {[%emt 0:00:04]} 20. Bxc1 {[%emt 0:00:03]} Nc5 {[%emt 0:00:06]} 21. d4 {[%emt 0:01:50]} exd4 {[%emt 0:00:05]} 22. exd4 {[%emt 0:00:05]} Ne6 {[%emt 0:00:05]} 23. Be3 {[%emt 0:00:44]} Bb1 {[%emt 0:00:43]} 24. a3 {[%emt 0:04:00]} Bc2 {[%emt 0:00:05]} 25. b4 {[%emt 0:00:08]} axb4 {[%emt 0:00:02]} 26. axb4 {[%emt 0:00:06]} f5 {[%emt 0:00:03]} 27. f3 {[%emt 0:01:41]} Kf7 {[%emt 0:00:05]} 28. Kf1 {[%emt 0:00:30]} Ke7 {[%emt 0:00:09]} 29. Ke1 {[%emt 0:00:19]} Kd6 {[%emt 0:00:07]} 30. Kd2 {[%emt 0:00:18]} Ba4 {[%emt 0:00:05]} 31. Kc3 {[%emt 0:01:11]} Kc6 {[%emt 0:00:05]} 32. f4 {[%emt 0:04:10]} Bb5 {[%emt 0:00:36]} 33. Bd1 {[%emt 0:01:58]} Bf1 {[%emt 0:00:17]} 34. g3 {[%emt 0:00:50]} Kd6 {[%emt 0:01:18]} 35. Ba4 {[%emt 0:03:20]} Ng7 {[%emt 0:00:23]} 36. Bd2 {[%emt 0:03:42]} Nh5 {[%emt 0:00:08]} 37. Bd1 {[%emt 0:00:50]} Nf6 {[%emt 0:00:04]} 38. Bf3 {[%emt 0:00:07]} Kc6 {[%emt 0:00:05]} 39. Be3 {[%emt 0:01:58]} Kb5 {[%emt 0:00:12]} 40. Bc1 {[%emt 0:00:34]} Bc4 {[%emt 0:00:09]} 41. Be3 {[%emt 0:00:53]} Ng8 {[%emt 0:01:07]} 42. Bd1 {[%emt 0:02:23]} Ne7 {[%emt 0:00:25]} 43. Bc1 {[%emt 0:00:13]} Nc8 {[%emt 0:00:16]} 44. Bc2 {[%emt 0:01:33]} Nd6 {[%emt 0:00:08]} 45. Bb2 {[%emt 0:00:25]} Kc6 {[%emt 0:05:18]} 46. Kd2 {[%emt 0:01:25]} Kb5 {[%emt 0:00:58]} 47. Kc3 {[%emt 0:00:14]} Bf1 {[%emt 0:00:33]} 48. Bc1 {[%emt 0:00:56]} Kc6 {[%emt 0:02:04]} 49. Kd2 {[%emt 0:00:34]} Ne8 {[%emt 0:01:51]} 50. Ba4+ {[%emt 0:00:45]} Bb5 {[%emt 0:00:05]} 51. Bd1 {[%emt 0:00:06]} Nf6 {[%emt 0:00:10]} 52. Bf3 {[%emt 0:00:06]} Bc4 {[%emt 0:00:26]} 53. Kc3 {[%emt 0:00:45]} Bf1 {[%emt 0:00:04]} 54. Be3 {[%emt 0:00:27]} Bh3 {[%emt 0:00:05]} 55. Bc1 {[%emt 0:01:13]} Bg4 {[%emt 0:00:05]} 56. Bg2 {[%emt 0:00:07]} Bh5 {[%emt 0:00:42]} 57. Be3 {[%emt 0:00:08]} Be2 {[%emt 0:00:12]} 58. Kd2 {[%emt 0:00:27]} Bc4 {[%emt 0:01:28]} 59. Bf3 {[%emt 0:00:35]} Ne8 {[%emt 0:00:51]} 60. Bd1 {[%emt 0:02:40]} Nd6 {[%emt 0:00:20]} 61. Bc2 {[%emt 0:00:24]} Kb6 {[%emt 0:01:42]} 62. Kc3 {[%emt 0:00:52]} Kc6 {[%emt 0:01:17]} 63. Kb2 {[%emt 0:00:46]} Kd7 {[%emt 0:00:08]} 64. Kc3 {[%emt 0:01:23]} Ke6 {[%emt 0:00:05]} 65. Kb2 {[%emt 0:00:43]} Kf6 {[%emt 0:00:08]} 66. Kc3 {[%emt 0:00:20]} Bb5 {[%emt 0:00:48]} 67. Bb1 {[%emt 0:01:29]} h6 {[%emt 0:00:48]} 68. h4 {[%emt 0:01:00]} Be2 {[%emt 0:00:28]} 69. Kd2 {[%emt 0:02:52]} Bf3 {[%emt 0:00:09]} 70. Bd3 {[%emt 0:00:33]} Be4 {[%emt 0:00:09]} 71. Be2 {[%emt 0:01:19]} Bb1 {[%emt 0:00:12]} 72. Bf3 {[%emt 0:00:23]} Nc4+ {[%emt 0:00:05]} 73. Ke2 {[%emt 0:00:06]} Be4 {[%emt 0:00:05]} 74. Bc1 {[%emt 0:00:31]} h5 {[%emt 0:01:28]} 75. Kf2 {[%emt 0:00:19]} Bxf3 {[%emt 0:00:04]} 76. Kxf3 {[%emt 0:00:03]} Ke6 {[%emt 0:00:30]} 77. Ke2 {[%emt 0:00:20]} Kd6 {[%emt 0:00:04]} 78. Kd3 {[%emt 0:00:31]} Kc6 {[%emt 0:00:05]} 79. Kc2 {[%emt 0:00:56]} Kb5 {[%emt 0:00:04]} 80. Kb3 {[%emt 0:00:16]} b6 {[%emt 0:00:24]} 0-1

[Event "ESP-chT 2nd Division 2019"]
[Site "Linares"]
[Date "2019.08.22"]
[Round "6.33"]
[White "Quintin Navarro, Alberto"]
[Black "Garcia Ortega, Jesus Angel"]
[Result "1-0"]
[ECO "A48"]
[WhiteElo "2376"]
[BlackElo "2109"]
[Annotator "NA"]
[PlyCount "59"]
[EventDate "2019.08.19"]
[EventType "team-tourn"]
[EventCountry "ESP"]
[SourceTitle "playchess.com"]
[Source "ChessBase"]
[SourceQuality "1"]
[TimeControl "5400+30"]

1. d4 {[%emt 0:00:00]} Nf6 {[%emt 0:01:21]} 2. Nf3 {[%emt 0:00:00]} g6 {[%emt 0:01:15]} 3. c4 {[%emt 0:01:28]} c5 {[%emt 0:00:12]} 4. Nc3 {[%emt 0:01:27]} cxd4 {[%emt 0:01:14]} 5. Nxd4 {[%emt 0:00:06]} Nc6 {[%emt 0:00:12]} 6. e4 {[%emt 0:00:34]} d6 {[%emt 0:00:18]} 7. Be2 {[%emt 0:00:23]} Bg7 {[%emt 0:00:17]} 8. Be3 {[%emt 0:00:16]} O-O {[%emt 0:01:02]} 9. h3 {[%emt 0:02:21]} Bd7 {[%emt 0:03:15]} 10. O-O {[%emt 0:02:17]} Ne8 {[%emt 0:02:08]} 11. Rc1 {[%emt 0:05:04]} Nc7 {[%emt 0:02:30]} 12. f4 {[%emt 0:08:52]} a6 {[%emt 0:13:09]} 13. Nxc6 {[%emt 0:02:57]} Bxc6 {[%emt 0:03:25]} 14. f5 {[%emt 0:00:31]} gxf5 {[%emt 0:02:56]} 15. Rxf5 {[%emt 0:07:25]} Ne6 {[%emt 0:01:20]} 16. Bd3 {[%emt 0:01:23]} f6 {[%emt 0:15:16]} 17. Qe1 {[%emt 0:13:15]} Be8 {[%emt 0:02:46]} 18. Rd1 {[%emt 0:03:34]} Bg6 {[%emt 0:02:23]} 19. c5 {[%emt 0:06:46]} Bxf5 {[%emt 0:07:54]} 20. exf5 {[%emt 0:00:10]} Ng5 {[%emt 0:00:19]} 21. Bc4+ {[%emt 0:02:34]} Kh8 {[%emt 0:00:44]} 22. Nd5 {[%emt 0:03:57]} Nf7 {[%emt 0:04:32]} 23. Nf4 {[%emt 0:02:28]} Qc8 {[%emt 0:07:26]} 24. Ng6+ {[%emt 0:02:34]} hxg6 {[%emt 0:01:30]} 25. Qh4+ {[%emt 0:00:39]} Bh6 {[%emt 0:18:49]} 26. Bxf7 {[%emt 0:07:50]} Rxf7 {[%emt 0:00:35]} 27. fxg6 {[%emt 0:00:07]} Rh7 {[%emt 0:01:26]} 28. Bxh6 {[%emt 0:00:11]} Qxc5+ {[%emt 0:04:34]} 29. Kh1 {[%emt 0:00:09]} Rg8 {[%emt 0:01:01]} 30. gxh7 {[%emt 0:00:25]} 1-0

[Event "ESP-chT 2nd Division 2019"]
[Site "Linares"]
[Date "2019.08.22"]
[Round "6.34"]
[White "Cabeza Alfonso, Ricardo"]
[Black "Chueca Lorente, Javier"]
[Result "0-1"]
[ECO "A30"]
[WhiteElo "1999"]
[BlackElo "2144"]
[Annotator "NA"]
[PlyCount "155"]
[EventDate "2019.08.19"]
[EventType "team-tourn"]
[EventCountry "ESP"]
[SourceTitle "playchess.com"]
[Source "ChessBase"]
[SourceQuality "1"]
[TimeControl "5400+30"]

1. c4 {[%emt 0:00:00]} c5 {[%emt 0:01:56]} 2. Nf3 {[%emt 0:00:03]} Nc6 {[%emt 0:00:29]} 3. g3 {[%emt 0:00:35]} g6 {[%emt 0:00:03]} 4. Bg2 {[%emt 0:00:56]} Bg7 {[%emt 0:00:04]} 5. O-O {[%emt 0:00:44]} e6 {[%emt 0:01:00]} 6. e3 {[%emt 0:04:11]} Nge7 {[%emt 0:00:26]} 7. d4 {[%emt 0:00:44]} cxd4 {[%emt 0:00:45]} 8. exd4 {[%emt 0:00:44]} d5 {[%emt 0:00:36]} 9. cxd5 {[%emt 0:04:06]} exd5 {[%emt 0:01:05]} 10. Bg5 {[%emt 0:03:11]} O-O {[%emt 0:02:20]} 11. Nc3 {[%emt 0:01:04]} Be6 {[%emt 0:12:37]} 12. Qd2 {[%emt 0:02:03]} Re8 {[%emt 0:03:23]} 13. Rfe1 {[%emt 0:01:20]} Qb6 {[%emt 0:05:32]} 14. Rad1 {[%emt 0:12:11]} Nf5 {[%emt 0:01:02]} 15. Na4 {[%emt 0:01:20]} Qb4 {[%emt 0:00:09]} 16. Qxb4 {[%emt 0:02:40]} Nxb4 {[%emt 0:00:04]} 17. g4 {[%emt 0:03:55]} Nd6 {[%emt 0:03:36]} 18. a3 {[%emt 0:00:55]} Nc6 {[%emt 0:00:13]} 19. h3 {[%emt 0:00:53]} b6 {[%emt 0:13:10]} 20. Ne5 {[%emt 0:02:53]} Na5 {[%emt 0:02:04]} 21. Bc1 {[%emt 0:02:27]} Rad8 {[%emt 0:31:07]} 22. Nc3 {[%emt 0:01:44]} Ndc4 {[%emt 0:00:38]} 23. Nb5 {[%emt 0:02:03]} Nxe5 {[%emt 0:02:49]} 24. dxe5 {[%emt 0:00:17]} Bd7 {[%emt 0:00:10]} 25. Nc7 {[%emt 0:13:37]} Rxe5 {[%emt 0:01:05]} 26. Rxe5 {[%emt 0:00:26]} Bxe5 {[%emt 0:00:03]} 27. Nxd5 {[%emt 0:00:30]} Nc6 {[%emt 0:05:19]} 28. Bg5 {[%emt 0:00:58]} Re8 {[%emt 0:04:17]} 29. Nf6+ {[%emt 0:05:54]} Bxf6 {[%emt 0:00:01]} 30. Bxf6 {[%emt 0:00:23]} Nb8 {[%emt 0:00:22]} 31. Rc1 {[%emt 0:01:22]} Rc8 {[%emt 0:01:16]} 32. Rxc8+ {[%emt 0:00:41]} Bxc8 {[%emt 0:00:01]} 33. Kf1 {[%emt 0:00:38]} Nd7 {[%emt 0:00:03]} 34. Bd4 {[%emt 0:00:31]} Kf8 {[%emt 0:00:30]} 35. Ke2 {[%emt 0:00:42]} Ke7 {[%emt 0:00:05]} 36. Bd5 {[%emt 0:00:45]} f6 {[%emt 0:04:18]} 37. f4 {[%emt 0:01:09]} Kd6 {[%emt 0:00:03]} 38. Bg8 {[%emt 0:00:25]} h6 {[%emt 0:01:26]} 39. h4 {[%emt 0:04:00]} Nf8 {[%emt 0:01:33]} 40. Kf3 {[%emt 0:01:46]} Be6 {[%emt 0:00:40]} 41. Bxe6 {[%emt 0:00:55]} Kxe6 {[%emt 0:00:06]} 42. h5 {[%emt 0:00:41]} gxh5 {[%emt 0:00:36]} 43. gxh5 {[%emt 0:00:02]} Kf5 {[%emt 0:00:07]} 44. a4 {[%emt 0:00:42]} Ne6 {[%emt 0:00:12]} 45. Be3 {[%emt 0:00:22]} Ng7 {[%emt 0:00:02]} 46. b4 {[%emt 0:00:17]} Nxh5 {[%emt 0:00:45]} 47. b5 {[%emt 0:06:26]} Ng7 {[%emt 0:01:17]} 48. a5 {[%emt 0:01:43]} Ne8 {[%emt 0:01:01]} 49. axb6 {[%emt 0:01:22]} axb6 {[%emt 0:00:05]} 50. Bxb6 {[%emt 0:00:12]} Nd6 {[%emt 0:00:03]} 51. Bc5 {[%emt 0:01:37]} Nxb5 {[%emt 0:00:16]} 52. Bf8 {[%emt 0:01:50]} Kg6 {[%emt 0:01:26]} 53. Kg4 {[%emt 0:01:33]} Nd4 {[%emt 0:01:34]} 54. Bc5 {[%emt 0:00:58]} Nf5 {[%emt 0:00:49]} 55. Bf2 {[%emt 0:00:34]} Ng7 {[%emt 0:00:38]} 56. Ba7 {[%emt 0:01:12]} h5+ {[%emt 0:00:51]} 57. Kf3 {[%emt 0:01:31]} Kf5 {[%emt 0:00:17]} 58. Bb8 {[%emt 0:00:20]} Ne6 {[%emt 0:00:23]} 59. Kg3 {[%emt 0:01:03]} Ke4 {[%emt 0:00:15]} 60. Bd6 {[%emt 0:00:29]} Nd4 {[%emt 0:00:11]} 61. Kf2 {[%emt 0:00:57]} f5 {[%emt 0:01:39]} 62. Be5 {[%emt 0:00:33]} Ne6 {[%emt 0:00:29]} 63. Kg3 {[%emt 0:01:18]} Nxf4 {[%emt 0:00:20]} 64. Bb8 {[%emt 0:00:22]} Ng6 {[%emt 0:00:25]} 65. Ba7 {[%emt 0:00:37]} f4+ {[%emt 0:00:22]} 66. Kf2 {[%emt 0:00:11]} Ne5 {[%emt 0:00:21]} 67. Bb6 {[%emt 0:00:19]} Ng4+ {[%emt 0:00:30]} 68. Kg2 {[%emt 0:00:15]} f3+ 69. Kg3 {[%emt 0:00:23]} Ne3 {[%emt 0:01:03]} 70. Kf2 {[%emt 0:00:28]} Nf5 {[%emt 0:00:08]} 71. Bc7 {[%emt 0:00:21]} h4 {[%emt 0:01:07]} 72. Bb8 {[%emt 0:00:19]} Ne3 {[%emt 0:00:41]} 73. Ba7 {[%emt 0:00:39]} Ng4+ {[%emt 0:00:02]} 74. Kg1 {[%emt 0:00:21]} Kd3 {[%emt 0:00:49]} 75. Kf1 {[%emt 0:02:22]} h3 {[%emt 0:00:14]} 76. Kg1 {[%emt 0:00:37]} Ke2 {[%emt 0:00:09]} 77. Kh1 {[%emt 0:01:08]} Ne3 {[%emt 0:00:39]} 78. Bb6 0-1